Workbook

Sheet Hoja1
A1: PROGRAMA - Informe mensual de Nacional AM y FM / Crisol FM de enero a diciembre 2025 | B1: TEMÁTICA | C1: EMISIONES MENSUALES | D1: DURACIÓN EN HORAS | E1: TOTAL DE HORAS | F1: EMISORA EN LA QUE SE TRANSMITE
A2: Acontecer Electoral | B2: Institucional/Orientación | C2: =8+8+6+8+8+8+5+4+5+4+4+5 -> 73 | D2: 0.5 | E2: 36h con 30 min | F2: NacionalFM/AM
A3: ACODECO Radio | B3: Institucional/Orientación | C3: =4+4+4+4+4+4+4+4+4+5+4+3 -> 48 | D3: 0.5 | E3: 25h 30 min | F3: NacionalFM/AM
A4: Activación en Albrook Mall | B4: Promocional/Musical | C4: =1+1 -> 2 | D4: 2 a 4 | E4: =4+2 -> 6 | F4: NacionalFM/AM/Crisol FM
A5: Activación en Los Andes Mall | B5: Promocional/Musical | C5: 1 | D5: 2 | E5: 2 | F5: NacionalFM/AM/Crisol FM
A6: Activacion Feria de David | B6: Promocional/Musical | C6: 4 | D6: 2 | E6: 8 | F6: NacionalFM/AM/Crisol FM
A7: Activación Pre Carnaval | B7: Promocional/Musical | C7: 1 | D7: 2 | E7: 2 | F7: NacionalFM/AM/Crisol FM
A8: Activación Primera Dama | B8: Promocional/Musical | C8: 1 | D8: 1 | E8: 1 | F8: NacionalFM/AM/Crisol FM
A9: Actualidad Deportiva | B9: Deportivo | C9: =21+20+20+20+21+21+23+21+22+23+15+19 -> 246 | D9: 1 | E9: =+Tabla2[[#This Row],[EMISIONES MENSUALES ]]*Tabla2[[#This Row],[DURACIÓN EN HORAS ]] -> 246 | F9: Nacional FM/AM y Crisol FM
A10: Actualidad Laboral | B10: Institucional/Orientación | C10: =8+8+3+10+4+8+5+4+5+5+4+5 -> 69 | D10: 0.5 | E10: 34h con 30 min | F10: NacionalFM/AM
A11: ADN Deportivo | B11: Deportes | C11: =4+4+5+3+2 -> 18 | D11: 1 | E11: =+Tabla2[[#This Row],[EMISIONES MENSUALES ]]*Tabla2[[#This Row],[DURACIÓN EN HORAS ]] -> 18 | F11: NacionalFM/AM
A12: A Media Mañana | B12: Farándula/Musical | C12: =42+42+42+23+21+22+23+14+21 -> 250 | D12: 1 | E12: =+Tabla2[[#This Row],[EMISIONES MENSUALES ]]*Tabla2[[#This Row],[DURACIÓN EN HORAS ]] -> 250 | F12: Nacional FM/AM
A13: A tu Salud Mental | B13: Orientación/Salud | C13: =3+4+4+8+4+4+4+5 -> 36 | D13: 0.5 | E13: 16 | F13: NacionalFM/AM
A14: Beats | B14: Entrenenimiento/Musical/Cultural | C14: =3+4+4+4+4+4+4+5+3+5 -> 40 | D14: 1 | E14: =+Tabla2[[#This Row],[EMISIONES MENSUALES ]]*Tabla2[[#This Row],[DURACIÓN EN HORAS ]] -> 40 | F14: Crisol FM
A15: Boletín deportivo | B15: Cápsulas Deportivas | C15: =260+260+260+260+260+260+260+260+260+260+260+260 -> 3120 | D15: 2 minutos | E15: 86h 40 min | F15: Crisol FM
A16: Boletín Informativo | B16: Noticioso | C16: =620+620+620+620+620+620+620+620+620+620+620+620 -> 7440 | D16: 4 minutos | E16: 373h 28 min | F16: Nacional FM/AM
A17: Cápsula Bulling | B17: Informativa/Motivadora | C17: =300+300+300+300+300 -> 1500 | D17: 50 segundos | E17: =24+24+24+24+24 -> 120 | F17: Nacional FM/AM Crisol FM
A18: Cápsula de confección de cutarras | B18: Informativa/Motivadora | C18: =300+300+300+300+300+300+300 -> 2100 | D18: 50 segundos | E18: =24+24+24+24+24+24+24 -> 168 | F18: Nacional FM/AM Crisol FM
A19: Cápsulas de prevención de SINAPROC | B19: Institucional/Orientación | C19: =672+672+672+672+672+672+672+672+672+672+672 -> 7392 | D19: 30 segundos | E19: =3+3+3+3+3+3+3+3+3+3+3 -> 33 | F19: NacionalFM/AM/Crisol FM
A20: Cápsula Mes de la etnia negra | B20: Cultural/religiosa | C20: 627 | D20: 30 segundos | E20: 3 | F20: Nacional FM/AM
A21: Cápsulas Patrias | B21: Informativa/Motivadora | C21: =300+300 -> 600 | D21: 50 segundos | E21: =24+24 -> 48 | F21: NacionalFM/AM/Crisol FM
A22: Cápsulas Productores | B22: Informativa/Motivadora | C22: =627+627+627 -> 1881 | D22: 30 segundos | E22: =3+3+3 -> 9 | F22: NacionalFM/AM/Crisol FM
A23: Cápsula de Semana Santa | B23: Cultural/religiosa | C23: 627 | D23: 30 segundos | E23: 3 | F23: Nacional FM/AM
A24: Capsula día del amor y la amistad | B24: Cultural | C24: =672+672 -> 1344 | D24: 30 segundos | E24: =3+3 -> 6 | F24: NacionalFM/AM/Crisol FM
A25: Cápsulas Voy y Vengo | B25: Preventivas de carnaval | C25: 1220 | D25: 30 segundos | E25: 7 | F25: NacionalFM/AM/Crisol FM
A26: Cine con Sabor | B26: Entretenimiento | C26: =4+8+8+6+8+8 -> 42 | D26: 1 | E26: =+Tabla2[[#This Row],[EMISIONES MENSUALES ]]*Tabla2[[#This Row],[DURACIÓN EN HORAS ]] -> 42 | F26: Nacional FM/AM y Crisol FM
A27: Conexión Asia | B27: Anime/juvenil/artístico | C27: =17+16+16+18 -> 67 | D27: 1 | E27: =+Tabla2[[#This Row],[EMISIONES MENSUALES ]]*Tabla2[[#This Row],[DURACIÓN EN HORAS ]] -> 67 | F27: Crisol FM
A28: Conexión 80 | B28: Musical | C28: =4+4+4+4+8+8+8+10+8+9+10+5 -> 82 | D28: 1 | E28: =+Tabla2[[#This Row],[EMISIONES MENSUALES ]]*Tabla2[[#This Row],[DURACIÓN EN HORAS ]] -> 82 | F28: Crisol FM
A29: El jorón de los recuerdos | B29: Musical/Folclórico | C29: =8+8+10+8+8+8+8+10+10+8+9+12 -> 107 | D29: 2 | E29: =+Tabla2[[#This Row],[EMISIONES MENSUALES ]]*Tabla2[[#This Row],[DURACIÓN EN HORAS ]] -> 214 | F29: NacionalFM/AM/Crisol FM
A30: El Kraken | B30: Deportivo/informativo | C30: =1+1+1+9+4+9+9+11+3 -> 48 | D30: 1 | E30: =+Tabla2[[#This Row],[EMISIONES MENSUALES ]]*Tabla2[[#This Row],[DURACIÓN EN HORAS ]] -> 48 | F30: Nacional FM/AM
A31: Especial Año Nuevo Resumen Noticias | B31: Noticioso | C31: 3 | D31: 3 | E31: 9 | F31: Nacional FM/AM/Crisol FM
A32: Especial Año Nuevo Resumen Internacional | B32: Noticioso | C32: 2 | D32: 0.5 | E32: 1 | F32: Nacional FM/AM/Crisol FM
A33: Especial Año Nuevo Fiesta de Acordeones | B33: Entretenimiento/Musical | C33: 2 | D33: 1 | E33: 2 | F33: Nacional FM/AM/Crisol FM
A34: Especial Año Nuevo DJ Brin | B34: Entretenimiento/Musical | C34: 1 | D34: 3 | E34: 3 | F34: Nacional FM/AM/Crisol FM
A35: Especial Año Nuevo DJ Renato | B35: Entretenimiento/Musical | C35: 1 | D35: 3 | E35: 3 | F35: Nacional FM/AM/Crisol FM
A36: Especial Año Nuevo DJ Máximo De León | B36: Entretenimiento/Musical | C36: 1 | D36: 3 | E36: 3 | F36: Nacional FM/AM/Crisol FM
A37: Especial Navideño DJ Renato | B37: Entretenimiento/Musical | C37: 1 | D37: 6 | E37: 6 | F37: Nacional FM/AM/Crisol FM
A38: Especial Navideño DJ Yala | B38: Entretenimiento/Musical | C38: 1 | D38: 3 | E38: 3 | F38: Nacional FM/AM/Crisol FM
A39: Especial Navideño Entre Mentes | B39: Orientacion/Informativo | C39: 2 | D39: 1 | E39: 2 | F39: Nacional FM/AM/Crisol FM
A40: Especial navideño DJ Máximo De León | B40: Entretenimiento/Musical | C40: 1 | D40: 3 | E40: 3 | F40: Nacional FM/AM/Crisol FM
A41: Especial Navideño Estrellas | B41: Entretenimiento/Musical | C41: 1 | D41: 1 | E41: 1 | F41: Nacional FM/AM/Crisol FM
A42: Especial Navideño Fabricio Velasquez | B42: Entretenimiento/Musical | C42: 2 | D42: 2 | E42: 4 | F42: Nacional FM/AM/Crisol FM
A43: Especial Navideño DJ Brin | B43: Entretenimiento/Musical | C43: 1 | D43: 3 | E43: 3 | F43: Nacional FM/AM/Crisol FM
A44: Estrellas | B44: Musical | C44: =6+12+18+18+18+23+21+22+23+10+10 -> 181 | D44: 1 | E44: =+Tabla2[[#This Row],[EMISIONES MENSUALES ]]*Tabla2[[#This Row],[DURACIÓN EN HORAS ]] -> 181 | F44: Nacionall FM/AM
A45: Familia con propósito | B45: Educativo/Familiar | C45: 4 | D45: 0.5 | E45: 4 | F45: Nacional FM/AM
A46: Fiesta de Acordeones | B46: Folclórico | C46: =4+4+4+4+4+4+4 -> 28 | D46: 1 | E46: =+Tabla2[[#This Row],[EMISIONES MENSUALES ]]*Tabla2[[#This Row],[DURACIÓN EN HORAS ]] -> 28 | F46: Nacional FM/AM y Crisol FM
A47: Frecuencia Rock | B47: Entretenimiento/Musical | C47: 4 | D47: 1 | E47: 4 | F47: Crisol FM
A48: Folkcast | B48: Folclórico / cultural | C48: =4+4+3+4 -> 15 | D48: 1 | E48: =+Tabla2[[#This Row],[EMISIONES MENSUALES ]]*Tabla2[[#This Row],[DURACIÓN EN HORAS ]] -> 15 | F48: NacionalFM/AM
A49: ITSE | B49: Institucional/Orientación | C49: =4+4+4+3+5+5+2+4+5+3+2 -> 41 | D49: 0.5 a 4 | E49: 47h 30 min | F49: NacionalFM/AM
A50: La Bitácora del Pescador | B50: Orientación/Informativo | C50: =2+8 -> 10 | D50: 0.5 | E50: =+Tabla2[[#This Row],[EMISIONES MENSUALES ]]*Tabla2[[#This Row],[DURACIÓN EN HORAS ]] -> 5 | F50: Nacional FM
A51: La Encomienda | B51: Musical/Folclórico | C51: =21+22+21+21+21+21+23+21+22+23+19+21 -> 256 | D51: 3 a 4 | E51: =579+69+76+84 -> 808 | F51: Crisol FM
A52: La Hora 9 | B52: Noticioso | C52: =21+20 -> 41 | D52: 1 | E52: =+Tabla2[[#This Row],[EMISIONES MENSUALES ]]*Tabla2[[#This Row],[DURACIÓN EN HORAS ]] -> 41 | F52: Nacional FM/AM
A53: La Travesía | B53: Música del Mundo/Cultural | C53: =4+3 -> 7 | D53: 1 | E53: =+Tabla2[[#This Row],[EMISIONES MENSUALES ]]*Tabla2[[#This Row],[DURACIÓN EN HORAS ]] -> 7 | F53: Nacional FM/AM
A54: La vida de colores | B54: Motivacional investigativo | C54: =4+5+10+8+10+3 -> 40 | D54: 1 | E54: =+Tabla2[[#This Row],[EMISIONES MENSUALES ]]*Tabla2[[#This Row],[DURACIÓN EN HORAS ]] -> 40 | F54: Nacional FM/AM
A55: La Voz del Pueblo Diurem y Voces de la Tierra | B55: Noticioso/Informativo/Pueblos Originarios | C55: =4+4+5+3+5+5+4+5+4+4+5+3 -> 51 | D55: 1 | E55: =+Tabla2[[#This Row],[EMISIONES MENSUALES ]]*Tabla2[[#This Row],[DURACIÓN EN HORAS ]] -> 51 | F55: Nacional FM/AM
A56: La Voz del Pueblo Guna | B56: Noticioso/Informativo/Pueblos Originarios | C56: =4+4+5+3+5+5+4+5+4+4+5+3 -> 51 | D56: 0.5 | E56: 25h 30 min | F56: Crisol FM
A57: Noticiero Científico NCC y Retransmisión | B57: Noticioso/Cultural/Tecnología | C57: =10+10+10+10+10+10+10+10+10+10+10+5 -> 115 | D57: 0.5 | E57: 57h 30 min | F57: Nacional FM/AM
A58: Noticiero Mediodía Radio | B58: Noticioso | C58: =21+20+21+21+21+21+23+21+22+23+16+21 -> 251 | D58: 1 | E58: =+Tabla2[[#This Row],[EMISIONES MENSUALES ]]*Tabla2[[#This Row],[DURACIÓN EN HORAS ]] -> 251 | F58: Nacional FM/AM
A59: Noticiero Nacional Vespertino Radio | B59: Noticioso | C59: =21+20+21+21+21+21+23+21+22+23+16+21 -> 251 | D59: 1 | E59: =+Tabla2[[#This Row],[EMISIONES MENSUALES ]]*Tabla2[[#This Row],[DURACIÓN EN HORAS ]] -> 251 | F59: Nacional FM/AM
A60: Noticiero Radio Nacional Matutino | B60: Noticioso | C60: =21+20+21+21+21+21+23+21+22+23+16+21 -> 251 | D60: 2 | E60: =+Tabla2[[#This Row],[EMISIONES MENSUALES ]]*Tabla2[[#This Row],[DURACIÓN EN HORAS ]] -> 502 | F60: Nacional FM/AM
A61: Noticiero SERTV Estelar | B61: Noticioso | C61: =21+20+21+21+21+21+23+21+22+23+16+21 -> 251 | D61: 2 | E61: =+Tabla2[[#This Row],[EMISIONES MENSUALES ]]*Tabla2[[#This Row],[DURACIÓN EN HORAS ]] -> 502 | F61: Crisol FM
A62: Noticiero SERTV Medio día | B62: Noticioso | C62: =21+20+21+21+21+21+23+21+22+23+16+21 -> 251 | D62: 1 | E62: =+Tabla2[[#This Row],[EMISIONES MENSUALES ]]*Tabla2[[#This Row],[DURACIÓN EN HORAS ]] -> 251 | F62: Crisol FM
A63: Orígenes y Legado | B63: Historico/cultural | C63: =1+2+2 -> 5 | D63: 0.5 | E63: 2h 30 min | F63: NacionalFM/AM
A64: Panamá Al Día | B64: Noticioso/Análisis | C64: =32+42+42+42+23+21+22+20+13+14 -> 271 | D64: 1 | E64: =+Tabla2[[#This Row],[EMISIONES MENSUALES ]]*Tabla2[[#This Row],[DURACIÓN EN HORAS ]] -> 271 | F64: Nacional FM/AM
A65: Panorama Universitario | B65: Informativo Universitario | C65: =8+8+4+6+5+5+4+5+4+4+5+3 -> 61 | D65: 0.5 | E65: 30h 30 min | F65: Nacional FM/AM
A66: Planeta Pop Urbano | B66: Musical | C66: =21+20+21+21+21+21+23+21+22+22+16+21 -> 250 | D66: 1 | E66: =+Tabla2[[#This Row],[EMISIONES MENSUALES ]]*Tabla2[[#This Row],[DURACIÓN EN HORAS ]] -> 250 | F66: Crisol FM
A67: Pregúntale a Mulino | B67: Orientación/Informativo | C67: =3+2+8+2+6+6+5+1+2+2+4+4 -> 45 | D67: 1 | E67: =+Tabla2[[#This Row],[EMISIONES MENSUALES ]]*Tabla2[[#This Row],[DURACIÓN EN HORAS ]] -> 45 | F67: NacionalFM/AM/Crisol FM
A68: Playlist Recargado | B68: Musical | C68: =21+20+21+21+21+21+23+21+22+23+16+21 -> 251 | D68: 2 | E68: =+Tabla2[[#This Row],[EMISIONES MENSUALES ]]*Tabla2[[#This Row],[DURACIÓN EN HORAS ]] -> 502 | F68: Crisol FM
A69: Procuraduría Al día | B69: Informativo/Institucional | C69: =4+4+4+4+4+4+2+4 -> 30 | D69: 0.5 | E69: =+Tabla2[[#This Row],[EMISIONES MENSUALES ]]*Tabla2[[#This Row],[DURACIÓN EN HORAS ]] -> 15 | F69: Nacional FM/AM
A70: Resumen de Farándula | B70: Entretenimiento/Musical | C70: =4+4+4+5+5+4+5+4+4+5 -> 44 | D70: 10 min | E70: 7h 20 min | F70: Crisol FM
A71: Resumen Internacional de Noticias | B71: Informativo | C71: =4+3+4+4+5+5+4+5+5+5+5 -> 49 | D71: 0.5 | E71: 24h 30 min | F71: Nacional FM/AM
A72: Ranking Play | B72: Farándula/Musical | C72: =2+2+4+4+5+5+4+5+5+4+4+4 -> 48 | D72: 1 | E72: =+Tabla2[[#This Row],[EMISIONES MENSUALES ]]*Tabla2[[#This Row],[DURACIÓN EN HORAS ]] -> 48 | F72: Crisol FM
A73: Renato en Casa | B73: Entretenimiento/Musical | C73: =21+20+20+21+21+21+23+21+21+23+16+21 -> 249 | D73: 3 | E73: =+Tabla2[[#This Row],[EMISIONES MENSUALES ]]*Tabla2[[#This Row],[DURACIÓN EN HORAS ]] -> 747 | F73: Crisol FM
A74: Semanario Judicial / Órgano Judicial | B74: Informativo/Órgano Judicial | C74: =4+4+4+4+5+5+4+5+4+5+3+3 -> 50 | D74: 0.5 | E74: 25 | F74: Nacional FM/AM
A75: SERTV Noticias Matutino | B75: Noticioso | C75: =21+20+20+21+21+21+23+21+22+23+16+21 -> 250 | D75: 2 | E75: =+Tabla2[[#This Row],[EMISIONES MENSUALES ]]*Tabla2[[#This Row],[DURACIÓN EN HORAS ]] -> 500 | F75: Crisol FM
A76: Tercer Tiempo | B76: Deportivo/Análisis | C76: =3+2+2+9+8+9+4+3 -> 40 | D76: 1 | E76: =+Tabla2[[#This Row],[EMISIONES MENSUALES ]]*Tabla2[[#This Row],[DURACIÓN EN HORAS ]] -> 40 | F76: Nacional FM/AM/
A77: Transmisión del Desfile Navideño
A78: Transmision Feria de David | B78: Cultural | C78: 1 | D78: 2 | E78: 2 | F78: NacionalFM/AM/Crisol FM
A79: Transmisión del Campeonato de Las Américas | B79: Deportivo | C79: 4 | D79: 2 | E79: 8 | F79: NacionalFM/AM/Crisol FM
A80: Transmision Canal de Panama | B80: Noticioso | C80: 1 | D80: 1 | E80: 1 | F80: NacionalFM/AM
A81: Transmisión Conference League | B81: Deportivo | C81: =1+1+1 -> 3 | D81: 2 | E81: =+Tabla2[[#This Row],[EMISIONES MENSUALES ]]*Tabla2[[#This Row],[DURACIÓN EN HORAS ]] -> 6 | F81: Nacional FM/AM/Crisol FM
A82: Transmisión Conferencia de Navidad | B82: Informativa/Motivadora | C82: 1 | D82: 2 | E82: 2 | F82: Crisol FM
A83: Transmisión Consagración nuevo Papa | B83: Histórico/Noticioso | C83: =1+1 -> 2 | D83: 4 | E83: =4+4 -> 8 | F83: Nacional FM/AM/Crisol FM
A84: Transmisión especial Toro Guapo de Antón | B84: Folclórico / cultural | C84: 3 | D84: 4 | E84: 12 | F84: Crisol FM
A85: Transmisión Europa League | B85: Deportivo | C85: =1+1+1 -> 3 | D85: 2 | E85: =+Tabla2[[#This Row],[EMISIONES MENSUALES ]]*Tabla2[[#This Row],[DURACIÓN EN HORAS ]] -> 6 | F85: Nacional FM/AM/Crisol FM
A86: Transmisión Festival del Sombrero Pintao | B86: Folclórico / cultural | C86: 3 | D86: 4 | E86: 12 | F86: Nacional FM/AM/Crisol FM
A87: Transmisión del Festival del Almojábano | B87: Folclórico Cultural | C87: 4 | D87: 2 | E87: =+Tabla2[[#This Row],[EMISIONES MENSUALES ]]*Tabla2[[#This Row],[DURACIÓN EN HORAS ]] -> 8 | F87: Nacional FM/AM/Crisol FM
A88: Transmisión Manito Ocueño | B88: Folclórico / cultural | C88: 3 | D88: 4 | E88: 12 | F88: NacionalFM/AM/Crisol FM
A89: Transmisión Panamá Viejo | B89: Noticiososo/Cultural | C89: 1 | D89: 1 | E89: 1 | F89: NacionalFM/AM
A90: Transmisiones Feria del Libro | B90: Cultural y educativo | C90: 7 | D90: 2 | E90: 14 | F90: NacionalFM/AM/Crisol FM
A91: Transmisiones Feria de Artesanías | B91: Folclórico / Cultural | C91: =1+3 -> 4 | D91: 2 | E91: =2+6 -> 8 | F91: Nacional FM/AM/Crisol FM
A92: Transmision fiestas patrias | B92: Musical/Folclórico/civico | C92: 9 | D92: 8 | E92: 72 | F92: Crisol FM
A93: Transmisiones Santa Librada | B93: Cultural / Religioso | C93: 2 | D93: 3 | E93: 6 | F93: Nacional FM/AM/Crisol FM
A94: Transmisión Selección Femenina | B94: Deportiva | C94: =1+1 -> 2 | D94: 2 | E94: =2+2 -> 4 | F94: Nacional FM/AM/Crisol FM
A95: Transmisión Sepelio Papa Francisco | B95: Histórico/Noticioso | C95: 1 | D95: 4 | E95: 4 | F95: Nacional FM/AM/Crisol FM
A96: Transmisión Wegala Fest | B96: Cultural | C96: 1 | D96: 1 | E96: 1 | F96: NacionalFM/AM/Crisol FM
A97: Transmisiones del 9 de enero | B97: Informativo | C97: 1 | D97: 2 | E97: 2 | F97: Nacional FM/AM/Crisol FM
A98: Transmisiones del 2 de enero del Presidente | B98: Informativo | C98: 1 | D98: 4 | E98: 4 | F98: Nacional FM/AM/
A99: Transmisiones del Béisbol Juvenil | B99: Deportivo | C99: =18+18+5+9+5+5 -> 60 | D99: 3 | E99: =+Tabla2[[#This Row],[EMISIONES MENSUALES ]]*Tabla2[[#This Row],[DURACIÓN EN HORAS ]] -> 180 | F99: NacionalFM/AM/Crisol FM
A100: Transmisiones de la Asamblea de Diputados | B100: Político Social | C100: =17+20+20+20+9+9+9+16+16+18 -> 154 | D100: 2 a 3 | E100: =34+60+60+9+9+9+32+32+36 -> 281 | F100: NacionalFM/AM
A101: Transmisiones de Presidencia | B101: Informativo | C101: =6+6+3+3+1+1+3+3 -> 26 | D101: 1 | E101: =+Tabla2[[#This Row],[EMISIONES MENSUALES ]]*Tabla2[[#This Row],[DURACIÓN EN HORAS ]] -> 26 | F101: NacionalFM/AM/Crisol FM
A102: Transmisiones especial La Encomienda | B102: Folclorico cultural | C102: 1 | D102: 4 | E102: 4 | F102: Crisol FM
A103: Transmision Festival de la Mejorana | B103: Folclorico cultural | C103: 20 | D103: 1 | E103: 20 | F103: NacionalFM/AM/Crisol FM
A104: Transmisiones Mil Pollera | B104: Cultural/folclórico/Noticioso | C104: 1 | D104: 9 | E104: 9 | F104: NacionalFM/AM/Crisol FM
A105: Transmisiones LPF | B105: Deportivo | C105: =1+3+2+3+4+4+2+4+8+8+5 -> 44 | D105: 2 | E105: =+Tabla2[[#This Row],[EMISIONES MENSUALES ]]*Tabla2[[#This Row],[DURACIÓN EN HORAS ]] -> 88 | F105: NacionalFM/AM/Crisol FM
A106: Transmisión Panamá vs EL Salvador | B106: Deportivo | C106: 1 | D106: 9 | E106: 9 | F106: NacionalFM/AM/Crisol FM
A107: Transmisiones Primera Dama | B107: Informativo | C107: 1 | D107: 1 | E107: 1 | F107: Crisol FM
A108: Verano en tu radio Carnaval | B108: Programación Carnaval | C108: 5 | D108: 10 | E108: 50 | F108: NacionalFM/AM/Crisol FM
A109: Viento y marea | B109: Informativo Institucional | C109: =1+1+1+1+2+2+2 -> 10 | D109: 0.5 | E109: =+Tabla2[[#This Row],[EMISIONES MENSUALES ]]*Tabla2[[#This Row],[DURACIÓN EN HORAS ]] -> 5 | F109: Nacional FM/AM
A110: Viva La Salsa | B110: Musical/Cultural | C110: =4+4+4 -> 12 | D110: 2 | E110: =+Tabla2[[#This Row],[EMISIONES MENSUALES ]]*Tabla2[[#This Row],[DURACIÓN EN HORAS ]] -> 24 | F110: NacionalFM/AM
A111: Voces Latinas | B111: Musical e Histórico | C111: =8+8+8+8+5+5+2+3+2+4+2 -> 55 | D111: 2 | E111: =+Tabla2[[#This Row],[EMISIONES MENSUALES ]]*Tabla2[[#This Row],[DURACIÓN EN HORAS ]] -> 110 | F111: Nacional FM/AM/Crisol FM
A112: Voces Latinas Románticas | B112: Musical/Cultural | C112: =4+1 -> 5 | D112: 1 | E112: 5 | F112: NacionalFM/AM
